[Event "Titled Tuesday Blitz July 25 Early 2023"]
[White "ArtemDyachuk"]
[Black "Svane, Frederik"]
[BlackFideId "12923044"]
[WhiteElo "2576"]
[BlackElo "2943"]
[Result "1-0"]
[Round "2"]
[TimeControl "180+2"]
[Date "2023.07.25"]
[WhiteClock "0:00:10"]
[BlackClock "0:00:14"]
[Board "26"]

1. e4 {[%clk 0:03:00]}  e5 {[%clk 0:02:59]} 2. Nf3 {[%clk 0:03:00]}  Nc6 {[%clk 0:02:59]} 3. Bc4 {[%clk 0:03:00]}  Nf6 {[%clk 0:02:58]} 4. d3 {[%clk 0:03:00]}  Be7 {[%clk 0:02:59]} 5. O-O {[%clk 0:02:59]}  O-O {[%clk 0:02:59]} 6. Re1 {[%clk 0:02:51]}  d6 {[%clk 0:02:56]} 7. h3 {[%clk 0:02:51]}  Na5 {[%clk 0:02:54]} 8. Bb5 {[%clk 0:02:47]}  c5 {[%clk 0:02:49]} 9. c3 {[%clk 0:02:42]}  h6 {[%clk 0:02:35]} 10. Nbd2 {[%clk 0:02:36]}  a6 {[%clk 0:02:35]} 11. Ba4 {[%clk 0:02:35]}  b5 {[%clk 0:02:36]} 12. Bc2 {[%clk 0:02:35]}  Re8 {[%clk 0:02:36]} 13. Nf1 {[%clk 0:02:35]}  Bf8 {[%clk 0:02:37]} 14. Ng3 {[%clk 0:02:33]}  Nc6 {[%clk 0:02:33]} 15. Be3 {[%clk 0:02:23]}  d5 {[%clk 0:02:25]} 16. exd5 {[%clk 0:02:08]}  Nxd5 {[%clk 0:02:14]} 17. Bd2 {[%clk 0:02:08]}  Ra7 {[%clk 0:02:04]} 18. a4 {[%clk 0:02:00]}  Rd7 {[%clk 0:01:55]} 19. Qb1 {[%clk 0:01:42]}  Bb7 {[%clk 0:01:48]} 20. Nf5 {[%clk 0:01:33]}  h5 {[%clk 0:01:21]} 21. Ng3 {[%clk 0:01:09]}  g6 {[%clk 0:01:17]} 22. Bg5 {[%clk 0:01:09]}  Qc8 {[%clk 0:01:13]} 23. Ne4 {[%clk 0:00:57]}  f5 {[%clk 0:00:52]} 24. Nf6+ {[%clk 0:00:50]}  Nxf6 {[%clk 0:00:52]} 25. Bxf6 {[%clk 0:00:51]}  Bg7 {[%clk 0:00:32]} 26. Bb3+ {[%clk 0:00:50]}  c4 {[%clk 0:00:21]} 27. dxc4 {[%clk 0:00:48]}  Bxf6 {[%clk 0:00:21]} 28. cxb5+ {[%clk 0:00:48]}  Kg7 {[%clk 0:00:20]} 29. bxc6 {[%clk 0:00:46]}  Bxc6 {[%clk 0:00:15]} 30. Qc2 {[%clk 0:00:39]}  Qb7 {[%clk 0:00:09]} 31. Rad1 {[%clk 0:00:37]}  Rxd1 {[%clk 0:00:08]} 32. Rxd1 {[%clk 0:00:36]}  Bxf3 {[%clk 0:00:06]} 33. gxf3 {[%clk 0:00:36]}  Qxf3 {[%clk 0:00:06]} 34. Qd3 {[%clk 0:00:30]}  Qxd3 {[%clk 0:00:01]} 35. Rxd3 {[%clk 0:00:30]}  Rb8 {[%clk 0:00:02]} 36. Rd7+ {[%clk 0:00:19]}  Kh6 {[%clk 0:00:02]} 37. Bc4 {[%clk 0:00:20]}  Rxb2 {[%clk 0:00:02]} 38. Rd6 {[%clk 0:00:20]}  Kg7 {[%clk 0:00:01]} 39. Rd7+ {[%clk 0:00:19]}  Kh6 {[%clk 0:00:02]} 40. Rd6 {[%clk 0:00:19]}  Bg5 {[%clk 0:00:01]} 41. Bf7 {[%clk 0:00:18]}  Bh4 {[%clk 0:00:01]} 42. Rxg6+ {[%clk 0:00:16]}  Kh7 {[%clk 0:00:02]} 43. Rg2 {[%clk 0:00:16]}  Rb1+ {[%clk 0:00:02]} 44. Kh2 {[%clk 0:00:15]}  Rb6 {[%clk 0:00:02]} 45. Bxh5 {[%clk 0:00:13]}  e4 {[%clk 0:00:02]} 46. Be2 {[%clk 0:00:12]}  Bf6 {[%clk 0:00:02]} 47. c4 {[%clk 0:00:08]}  Be5+ {[%clk 0:00:03]} 48. Kh1 {[%clk 0:00:08]}  Rb2 {[%clk 0:00:03]} 49. f3 {[%clk 0:00:06]}  e3 {[%clk 0:00:03]} 50. Bd3 {[%clk 0:00:06]}  Rb3 {[%clk 0:00:02]} 51. Bxf5+ {[%clk 0:00:06]}  Kh8 {[%clk 0:00:03]} 52. Re2 {[%clk 0:00:05]}  Bg3 {[%clk 0:00:03]} 53. Kg2 {[%clk 0:00:04]}  Bf2 {[%clk 0:00:03]} 54. Be4 {[%clk 0:00:04]}  Kg7 {[%clk 0:00:03]} 55. c5 {[%clk 0:00:04]}  Kf6 {[%clk 0:00:03]} 56. Rc2 {[%clk 0:00:04]}  Ke7 {[%clk 0:00:03]} 57. c6 {[%clk 0:00:04]}  Rb8 {[%clk 0:00:02]} 58. c7 {[%clk 0:00:04]}  Rg8+ {[%clk 0:00:03]} 59. Kf1 {[%clk 0:00:04]}  Rg1+ {[%clk 0:00:01]} 60. Ke2 {[%clk 0:00:04]}  Re1+ {[%clk 0:00:02]} 61. Kd3 {[%clk 0:00:04]}  Rd1+ {[%clk 0:00:02]} 62. Ke2 {[%clk 0:00:03]}  Re1+ {[%clk 0:00:03]} 63. Kd3 {[%clk 0:00:04]}  Rd1+ {[%clk 0:00:03]} 64. Kc4 {[%clk 0:00:03]}  Kd7 {[%clk 0:00:04]} 65. Kb3 {[%clk 0:00:03]}  Rb1+ {[%clk 0:00:04]} 66. Ka2 {[%clk 0:00:03]}  Rc1 {[%clk 0:00:02]} 67. Bf5+ {[%clk 0:00:03]}  Ke7 {[%clk 0:00:02]} 68. Rxc1 {[%clk 0:00:04]}  e2 {[%clk 0:00:02]} 69. c8=Q {[%clk 0:00:04]}  Kf6 {[%clk 0:00:03]} 70. Qe6+ {[%clk 0:00:03]}  Kg5 {[%clk 0:00:04]} 71. Qxe2 {[%clk 0:00:03]}  Bg3 {[%clk 0:00:05]} 72. Qe4 {[%clk 0:00:04]}  Bf4 {[%clk 0:00:05]} 73. Rc2 {[%clk 0:00:05]}  Bg3 {[%clk 0:00:05]} 74. a5 {[%clk 0:00:05]}  Be5 {[%clk 0:00:06]} 75. Kb3 {[%clk 0:00:06]}  Bf4 {[%clk 0:00:06]} 76. Kc4 {[%clk 0:00:07]}  Bg3 {[%clk 0:00:06]} 77. Kd5 {[%clk 0:00:08]}  Bd6 {[%clk 0:00:06]} 78. Kc6 {[%clk 0:00:09]}  Be5 {[%clk 0:00:06]} 79. Kb7 {[%clk 0:00:10]}  Bf4 {[%clk 0:00:06]} 80. Kxa6 {[%clk 0:00:11]}  Bd6 {[%clk 0:00:07]} 81. Kb7 {[%clk 0:00:12]}  Bc7 {[%clk 0:00:08]} 82. a6 {[%clk 0:00:12]}  Bb6 {[%clk 0:00:09]} 83. Kxb6 {[%clk 0:00:12]}  Kf6 {[%clk 0:00:09]} 84. Qe6+ {[%clk 0:00:12]}  Kg5 {[%clk 0:00:10]} 85. f4+ {[%clk 0:00:12]}  Kxf4 {[%clk 0:00:10]} 86. Rf2+ {[%clk 0:00:12]}  Kg3 {[%clk 0:00:11]} 87. Qe3+ {[%clk 0:00:10]}  Kh4 {[%clk 0:00:12]} 88. Qf4+ {[%clk 0:00:10]}  Kh5 {[%clk 0:00:13]} 89. Qg4+ {[%clk 0:00:10]}  Kh6 {[%clk 0:00:14]} 90. Qg6# {[%clk 0:00:10]} 1-0


[Site "https://www.chess.com"]

[Event "Titled Tuesday Blitz July 25 Early 2023"]
[White "Shishkov, Andrei"]
[Black "ChessBrah"]
[WhiteFideId "4500563"]
[WhiteElo "2573"]
[BlackElo "2934"]
[Result "0-1"]
[Round "2"]
[TimeControl "180+2"]
[Date "2023.07.25"]
[WhiteClock "0:00:04"]
[BlackClock "0:01:37"]
[Board "28"]

1. d4 {[%clk 0:02:57]}  c6 {[%clk 0:03:00]} 2. c4 {[%clk 0:02:57]}  d5 {[%clk 0:03:00]} 3. e3 {[%clk 0:02:55]}  Nf6 {[%clk 0:03:00]} 4. Nc3 {[%clk 0:02:55]}  e6 {[%clk 0:03:01]} 5. b3 {[%clk 0:02:55]}  Bb4 {[%clk 0:03:00]} 6. Bb2 {[%clk 0:02:55]}  O-O {[%clk 0:03:01]} 7. Bd3 {[%clk 0:02:55]}  Nbd7 {[%clk 0:03:01]} 8. Ne2 {[%clk 0:02:54]}  Re8 {[%clk 0:02:59]} 9. O-O {[%clk 0:02:54]}  b6 {[%clk 0:02:59]} 10. e4 {[%clk 0:02:35]}  dxc4 {[%clk 0:02:58]} 11. Bxc4 {[%clk 0:02:27]}  e5 {[%clk 0:02:57]} 12. a3 {[%clk 0:02:05]}  Bf8 {[%clk 0:02:55]} 13. b4 {[%clk 0:02:00]}  Bb7 {[%clk 0:02:52]} 14. Qb3 {[%clk 0:01:56]}  Qe7 {[%clk 0:02:49]} 15. a4 {[%clk 0:01:39]}  exd4 {[%clk 0:02:46]} 16. Nxd4 {[%clk 0:01:38]}  Ne5 {[%clk 0:02:47]} 17. Nf5 {[%clk 0:01:36]}  Qc7 {[%clk 0:02:47]} 18. Rac1 {[%clk 0:01:21]}  Nfg4 {[%clk 0:02:46]} 19. Ng3 {[%clk 0:00:58]}  Nxc4 {[%clk 0:02:40]} 20. Qxc4 {[%clk 0:00:59]}  Qf4 {[%clk 0:02:41]} 21. Nce2 {[%clk 0:00:50]}  Qh6 {[%clk 0:02:40]} 22. h3 {[%clk 0:00:47]}  Ne5 {[%clk 0:02:37]} 23. Qc3 {[%clk 0:00:38]}  c5 {[%clk 0:02:29]} 24. b5 {[%clk 0:00:29]}  Rad8 {[%clk 0:02:24]} 25. Rcd1 {[%clk 0:00:26]}  f6 {[%clk 0:01:58]} 26. f4 {[%clk 0:00:16]}  Nf7 {[%clk 0:01:50]} 27. Qf3 {[%clk 0:00:13]}  Qg6 {[%clk 0:01:44]} 28. Rxd8 {[%clk 0:00:11]}  Rxd8 {[%clk 0:01:44]} 29. Nc3 {[%clk 0:00:10]}  Nd6 {[%clk 0:01:42]} 30. Rd1 {[%clk 0:00:07]}  Re8 {[%clk 0:01:42]} 31. Qd3 {[%clk 0:00:06]}  Qf7 {[%clk 0:01:41]} 32. e5 {[%clk 0:00:04]}  Nc4 {[%clk 0:01:37]} 0-1


[Site "https://www.chess.com"]

[Event "Titled Tuesday Blitz July 25 Early 2023"]
[White "Megaranto, Susanto"]
[Black "Fernandez, Fernando"]
[WhiteFideId "7101384"]
[BlackFideId "3802299"]
[WhiteElo "2933"]
[BlackElo "2571"]
[Result "1-0"]
[Round "2"]
[TimeControl "180+2"]
[Date "2023.07.25"]
[WhiteClock "0:01:19"]
[BlackClock "0:00:01"]
[Board "29"]

1. e4 {[%clk 0:03:00]}  c6 {[%clk 0:02:48]} 2. c4 {[%clk 0:02:59]}  d5 {[%clk 0:02:48]} 3. exd5 {[%clk 0:03:00]}  cxd5 {[%clk 0:02:49]} 4. cxd5 {[%clk 0:03:01]}  Nf6 {[%clk 0:02:49]} 5. Nc3 {[%clk 0:03:00]}  Nxd5 {[%clk 0:02:49]} 6. Nf3 {[%clk 0:03:01]}  Nc6 {[%clk 0:02:49]} 7. Bb5 {[%clk 0:02:58]}  e6 {[%clk 0:02:41]} 8. d4 {[%clk 0:02:57]}  Bd6 {[%clk 0:02:36]} 9. O-O {[%clk 0:02:56]}  O-O {[%clk 0:02:35]} 10. Re1 {[%clk 0:02:55]}  Nce7 {[%clk 0:02:32]} 11. Ne4 {[%clk 0:02:51]}  h6 {[%clk 0:02:27]} 12. Nxd6 {[%clk 0:02:47]}  Qxd6 {[%clk 0:02:27]} 13. Ne5 {[%clk 0:02:48]}  a6 {[%clk 0:02:07]} 14. Bd3 {[%clk 0:02:47]}  Bd7 {[%clk 0:02:07]} 15. Qg4 {[%clk 0:02:41]}  Nf5 {[%clk 0:02:01]} 16. Bd2 {[%clk 0:02:13]}  Nf6 {[%clk 0:01:55]} 17. Qh3 {[%clk 0:02:13]}  Rfd8 {[%clk 0:01:01]} 18. Rad1 {[%clk 0:02:04]}  Rac8 {[%clk 0:00:44]} 19. a3 {[%clk 0:02:04]}  Qxd4 {[%clk 0:00:27]} 20. Bc3 {[%clk 0:02:00]}  Qf4 {[%clk 0:00:23]} 21. g3 {[%clk 0:01:43]}  Qa4 {[%clk 0:00:07]} 22. Bb1 {[%clk 0:01:25]}  Bc6 {[%clk 0:00:03]} 23. Rxd8+ {[%clk 0:01:25]}  Rxd8 {[%clk 0:00:03]} 24. Nxc6 {[%clk 0:01:24]}  Qxc6 {[%clk 0:00:03]} 25. Bxf6 {[%clk 0:01:24]}  gxf6 {[%clk 0:00:03]} 26. Bxf5 {[%clk 0:01:25]}  exf5 {[%clk 0:00:04]} 27. Qxf5 {[%clk 0:01:23]}  Rd5 {[%clk 0:00:02]} 28. Qf4 {[%clk 0:01:22]}  Kg7 {[%clk 0:00:02]} 29. h4 {[%clk 0:01:21]}  Qd6 {[%clk 0:00:02]} 30. Qg4+ {[%clk 0:01:20]}  Kf8 {[%clk 0:00:01]} 31. Qc8+ {[%clk 0:01:20]}  Kg7 {[%clk 0:00:02]} 32. Re8 {[%clk 0:01:18]}  Rd1+ {[%clk 0:00:01]} 33. Kh2 {[%clk 0:01:19]} 1-0


[Site "https://www.chess.com"]

[Event "Titled Tuesday Blitz July 25 Early 2023"]
[White "Hovhannisyan, Robert"]
[Black "Trifan, Andrei Ioan"]
[WhiteFideId "13302507"]
[BlackFideId "12967068"]
[WhiteElo "2925"]
[BlackElo "2567"]
[Result "1-0"]
[Round "2"]
[TimeControl "180+2"]
[Date "2023.07.25"]
[WhiteClock "0:00:47"]
[BlackClock "0:00:37"]
[Board "30"]

1. e4 {[%clk 0:03:00]}  e5 {[%clk 0:02:59]} 2. Nf3 {[%clk 0:02:58]}  Nc6 {[%clk 0:02:59]} 3. Bb5 {[%clk 0:02:58]}  a6 {[%clk 0:02:59]} 4. Ba4 {[%clk 0:02:58]}  Nf6 {[%clk 0:03:00]} 5. O-O {[%clk 0:02:57]}  Be7 {[%clk 0:03:00]} 6. Re1 {[%clk 0:02:55]}  b5 {[%clk 0:03:00]} 7. Bb3 {[%clk 0:02:55]}  d6 {[%clk 0:03:01]} 8. c3 {[%clk 0:02:52]}  O-O {[%clk 0:03:01]} 9. h3 {[%clk 0:02:52]}  Nb8 {[%clk 0:03:01]} 10. d3 {[%clk 0:02:52]}  Bb7 {[%clk 0:02:57]} 11. Nbd2 {[%clk 0:02:52]}  Nbd7 {[%clk 0:02:57]} 12. Nf1 {[%clk 0:02:52]}  Re8 {[%clk 0:02:54]} 13. Ng3 {[%clk 0:02:52]}  Bf8 {[%clk 0:02:54]} 14. Ng5 {[%clk 0:02:40]}  d5 {[%clk 0:02:48]} 15. exd5 {[%clk 0:02:26]}  h6 {[%clk 0:02:45]} 16. N5e4 {[%clk 0:02:23]}  Bxd5 {[%clk 0:02:38]} 17. Qf3 {[%clk 0:02:19]}  Bxb3 {[%clk 0:02:36]} 18. axb3 {[%clk 0:02:20]}  Nxe4 {[%clk 0:02:33]} 19. dxe4 {[%clk 0:02:19]}  Qf6 {[%clk 0:02:30]} 20. Qxf6 {[%clk 0:02:17]}  Nxf6 {[%clk 0:02:28]} 21. Be3 {[%clk 0:02:18]}  a5 {[%clk 0:02:21]} 22. Ra2 {[%clk 0:02:15]}  Ra6 {[%clk 0:02:16]} 23. Rea1 {[%clk 0:02:14]}  Rea8 {[%clk 0:02:15]} 24. Kf1 {[%clk 0:02:02]}  a4 {[%clk 0:02:11]} 25. bxa4 {[%clk 0:01:52]}  Rxa4 {[%clk 0:02:01]} 26. Rxa4 {[%clk 0:01:52]}  bxa4 {[%clk 0:01:57]} 27. Ke2 {[%clk 0:01:46]}  Nd7 {[%clk 0:01:56]} 28. Nf1 {[%clk 0:01:40]}  Rb8 {[%clk 0:01:46]} 29. Bc1 {[%clk 0:01:38]}  Nc5 {[%clk 0:01:45]} 30. Nd2 {[%clk 0:01:28]}  f6 {[%clk 0:01:42]} 31. f3 {[%clk 0:01:26]}  Kf7 {[%clk 0:01:42]} 32. Ra2 {[%clk 0:01:26]}  Ke6 {[%clk 0:01:39]} 33. Nc4 {[%clk 0:01:27]}  Ra8 {[%clk 0:01:28]} 34. b4 {[%clk 0:01:25]}  Nb3 {[%clk 0:01:24]} 35. Be3 {[%clk 0:01:22]}  Kd7 {[%clk 0:01:20]} 36. Nb2 {[%clk 0:01:20]}  c5 {[%clk 0:01:08]} 37. bxc5 {[%clk 0:01:09]}  a3 {[%clk 0:01:03]} 38. Nc4 {[%clk 0:01:09]}  Kc6 {[%clk 0:00:58]} 39. Rxa3 {[%clk 0:01:06]}  Rxa3 {[%clk 0:00:58]} 40. Nxa3 {[%clk 0:01:07]}  Nxc5 {[%clk 0:00:58]} 41. Bxc5 {[%clk 0:01:05]}  Bxc5 {[%clk 0:00:59]} 42. Nc2 {[%clk 0:01:05]}  g6 {[%clk 0:00:56]} 43. Kd3 {[%clk 0:00:59]}  Kb5 {[%clk 0:00:55]} 44. g4 {[%clk 0:00:59]}  Bf2 {[%clk 0:00:52]} 45. Nb4 {[%clk 0:00:51]}  Bh4 {[%clk 0:00:48]} 46. Nd5 {[%clk 0:00:50]}  Kc5 {[%clk 0:00:49]} 47. Ne7 {[%clk 0:00:51]}  g5 {[%clk 0:00:48]} 48. Nf5 {[%clk 0:00:50]}  Be1 {[%clk 0:00:43]} 49. Nxh6 {[%clk 0:00:50]}  Kd6 {[%clk 0:00:43]} 50. Nf5+ {[%clk 0:00:51]}  Ke6 {[%clk 0:00:43]} 51. Kc4 {[%clk 0:00:50]}  Bd2 {[%clk 0:00:43]} 52. Kb3 {[%clk 0:00:50]}  Be1 {[%clk 0:00:41]} 53. c4 {[%clk 0:00:49]}  Kd7 {[%clk 0:00:41]} 54. c5 {[%clk 0:00:48]}  Bf2 {[%clk 0:00:39]} 55. Kc4 {[%clk 0:00:49]}  Ke6 {[%clk 0:00:38]} 56. Kb5 {[%clk 0:00:48]}  Kd7 {[%clk 0:00:38]} 57. Kb6 {[%clk 0:00:47]}  Ke6 {[%clk 0:00:37]} 58. Kc6 {[%clk 0:00:47]} 1-0


[Site "https://www.chess.com"]

[Event "Titled Tuesday Blitz July 25 Early 2023"]
[White "To, Nhat Minh"]
[Black "Aravindh, Chithambaram VR."]
[WhiteFideId "729019"]
[BlackFideId "5072786"]
[WhiteElo "2567"]
[BlackElo "2924"]
[Result "0-1"]
[Round "2"]
[TimeControl "180+2"]
[Date "2023.07.25"]
[WhiteClock "0:02:13"]
[BlackClock "0:02:45"]
[Board "31"]

1. e4 {[%clk 0:03:00]}  c5 {[%clk 0:02:59]} 2. Nf3 {[%clk 0:02:59]}  Nc6 {[%clk 0:02:59]} 3. d4 {[%clk 0:02:56]}  cxd4 {[%clk 0:02:59]} 4. Nxd4 {[%clk 0:02:56]}  Nf6 {[%clk 0:02:57]} 5. Nc3 {[%clk 0:02:56]}  h5 {[%clk 0:02:56]} 6. f3 {[%clk 0:02:42]}  e5 {[%clk 0:02:55]} 7. Ndb5 {[%clk 0:02:33]}  d6 {[%clk 0:02:54]} 8. Nd5 {[%clk 0:02:30]}  Nxd5 {[%clk 0:02:54]} 9. exd5 {[%clk 0:02:31]}  Ne7 {[%clk 0:02:52]} 10. c4 {[%clk 0:02:27]}  Nf5 {[%clk 0:02:52]} 11. Bd3 {[%clk 0:02:15]}  a6 {[%clk 0:02:49]} 12. Bxf5 {[%clk 0:02:12]}  Bxf5 {[%clk 0:02:48]} 13. Nc3 {[%clk 0:02:13]}  Qh4+ {[%clk 0:02:45]} 0-1


[Site "https://www.chess.com"]

[Event "Titled Tuesday Blitz July 25 Early 2023"]
[White "Roebers, Eline"]
[Black "Zhigalko, Sergei"]
[WhiteFideId "1058401"]
[BlackFideId "13502956"]
[WhiteElo "2566"]
[BlackElo "2902"]
[Result "0-1"]
[Round "2"]
[TimeControl "180+2"]
[Date "2023.07.25"]
[WhiteClock "0:00:02"]
[BlackClock "0:00:04"]
[Board "34"]

1. e4 {[%clk 0:03:00]}  c5 {[%clk 0:02:58]} 2. Nf3 {[%clk 0:03:00]}  Nc6 {[%clk 0:02:57]} 3. d4 {[%clk 0:02:59]}  cxd4 {[%clk 0:02:58]} 4. Nxd4 {[%clk 0:03:00]}  Nf6 {[%clk 0:02:58]} 5. Nc3 {[%clk 0:03:01]}  e5 {[%clk 0:02:59]} 6. Ndb5 {[%clk 0:03:01]}  d6 {[%clk 0:02:59]} 7. Bg5 {[%clk 0:03:01]}  a6 {[%clk 0:03:00]} 8. Na3 {[%clk 0:03:01]}  b5 {[%clk 0:03:00]} 9. Bxf6 {[%clk 0:03:01]}  gxf6 {[%clk 0:03:01]} 10. Nd5 {[%clk 0:03:01]}  Bg7 {[%clk 0:03:01]} 11. g3 {[%clk 0:03:01]}  f5 {[%clk 0:03:01]} 12. Bg2 {[%clk 0:02:57]}  fxe4 {[%clk 0:02:58]} 13. Bxe4 {[%clk 0:02:56]}  Be6 {[%clk 0:02:58]} 14. Qh5 {[%clk 0:02:48]}  Rc8 {[%clk 0:02:53]} 15. c3 {[%clk 0:02:45]}  Ne7 {[%clk 0:02:53]} 16. Rd1 {[%clk 0:02:39]}  Nxd5 {[%clk 0:02:50]} 17. Bxd5 {[%clk 0:02:39]}  O-O {[%clk 0:02:47]} 18. Nc2 {[%clk 0:02:36]}  Qd7 {[%clk 0:02:42]} 19. Ne3 {[%clk 0:02:33]}  f5 {[%clk 0:02:20]} 20. O-O {[%clk 0:02:22]}  Kh8 {[%clk 0:02:17]} 21. f4 {[%clk 0:01:57]}  e4 {[%clk 0:02:14]} 22. Bxe6 {[%clk 0:01:50]}  Qxe6 {[%clk 0:02:14]} 23. Rd5 {[%clk 0:01:50]}  b4 {[%clk 0:01:31]} 24. cxb4 {[%clk 0:01:28]}  Bxb2 {[%clk 0:01:30]} 25. Rfd1 {[%clk 0:01:27]}  Rc1 {[%clk 0:01:04]} 26. Qe2 {[%clk 0:01:20]}  Rxd1+ {[%clk 0:01:02]} 27. Qxd1 {[%clk 0:01:16]}  Rd8 {[%clk 0:00:38]} 28. Rxf5 {[%clk 0:00:55]}  Qxa2 {[%clk 0:00:34]} 29. Ra5 {[%clk 0:00:50]}  Qe6 {[%clk 0:00:17]} 30. Rxa6 {[%clk 0:00:48]}  Bc3 {[%clk 0:00:10]} 31. b5 {[%clk 0:00:35]}  Kg8 {[%clk 0:00:09]} 32. Qd5 {[%clk 0:00:23]}  Qxd5 {[%clk 0:00:02]} 33. Nxd5 {[%clk 0:00:24]}  Bd4+ {[%clk 0:00:02]} 34. Kf1 {[%clk 0:00:24]}  Kf7 {[%clk 0:00:02]} 35. Ke2 {[%clk 0:00:19]}  Ke6 {[%clk 0:00:02]} 36. Nb4 {[%clk 0:00:13]}  Bc5 {[%clk 0:00:02]} 37. Nc6 {[%clk 0:00:11]}  Rc8 {[%clk 0:00:02]} 38. Ra4 {[%clk 0:00:07]}  d5 {[%clk 0:00:01]} 39. Ra6 {[%clk 0:00:07]}  Kd7 {[%clk 0:00:01]} 40. Ne5+ {[%clk 0:00:07]}  Kc7 {[%clk 0:00:01]} 41. Rh6 {[%clk 0:00:07]}  Kb7 {[%clk 0:00:01]} 42. Rxh7+ {[%clk 0:00:07]}  Kb6 {[%clk 0:00:01]} 43. Nd7+ {[%clk 0:00:04]}  Kxb5 {[%clk 0:00:02]} 44. Rh5 {[%clk 0:00:05]}  Kc4 {[%clk 0:00:01]} 45. Ne5+ {[%clk 0:00:04]}  Kd4 {[%clk 0:00:02]} 46. Nf7 {[%clk 0:00:02]}  Ra8 {[%clk 0:00:02]} 47. Ng5 {[%clk 0:00:02]}  Ra2+ {[%clk 0:00:02]} 48. Kd1 {[%clk 0:00:03]}  Kd3 {[%clk 0:00:03]} 49. Kc1 {[%clk 0:00:03]}  Bd4 {[%clk 0:00:03]} 50. Ne6 {[%clk 0:00:02]}  Ra1# {[%clk 0:00:04]} 0-1


[Site "https://www.chess.com"]

[Event "Titled Tuesday Blitz July 25 Early 2023"]
[White "Galchenko, Matvey"]
[Black "Ezat, Mohamed"]
[WhiteFideId "24175480"]
[BlackFideId "10600906"]
[WhiteElo "2896"]
[BlackElo "2565"]
[Result "1-0"]
[Round "2"]
[TimeControl "180+2"]
[Date "2023.07.25"]
[WhiteClock "0:00:15"]
[BlackClock "0:00:09"]
[Board "36"]

1. f4 {[%clk 0:02:57]}  Nf6 {[%clk 0:02:57]} 2. Nf3 {[%clk 0:02:56]}  g6 {[%clk 0:02:57]} 3. g3 {[%clk 0:02:56]}  Bg7 {[%clk 0:02:57]} 4. Bg2 {[%clk 0:02:56]}  O-O {[%clk 0:02:58]} 5. O-O {[%clk 0:02:57]}  d6 {[%clk 0:02:59]} 6. d3 {[%clk 0:02:57]}  e5 {[%clk 0:02:59]} 7. Nc3 {[%clk 0:02:58]}  Nc6 {[%clk 0:02:53]} 8. e4 {[%clk 0:02:58]}  exf4 {[%clk 0:02:48]} 9. Bxf4 {[%clk 0:02:59]}  d5 {[%clk 0:02:38]} 10. e5 {[%clk 0:02:59]}  Ng4 {[%clk 0:02:38]} 11. d4 {[%clk 0:02:57]}  f6 {[%clk 0:02:35]} 12. h3 {[%clk 0:02:52]}  fxe5 {[%clk 0:01:51]} 13. Bg5 {[%clk 0:02:41]}  Bf6 {[%clk 0:01:50]} 14. hxg4 {[%clk 0:02:24]}  Bxg5 {[%clk 0:01:49]} 15. Nxg5 {[%clk 0:02:25]}  Qxg5 {[%clk 0:01:45]} 16. Rxf8+ {[%clk 0:02:25]}  Kxf8 {[%clk 0:01:45]} 17. Qf1+ {[%clk 0:02:23]}  Kg7 {[%clk 0:01:39]} 18. Bxd5 {[%clk 0:02:05]}  Bxg4 {[%clk 0:01:25]} 19. Qf7+ {[%clk 0:01:58]}  Kh8 {[%clk 0:01:24]} 20. Ne4 {[%clk 0:01:47]}  Qe7 {[%clk 0:00:37]} 21. Rf1 {[%clk 0:01:36]}  Bf5 {[%clk 0:00:23]} 22. Qxe7 {[%clk 0:00:33]}  Nxe7 {[%clk 0:00:22]} 23. Bxb7 {[%clk 0:00:34]}  Rb8 {[%clk 0:00:22]} 24. Nc5 {[%clk 0:00:34]}  exd4 {[%clk 0:00:16]} 25. Rf2 {[%clk 0:00:35]}  h5 {[%clk 0:00:15]} 26. Rd2 {[%clk 0:00:34]}  Rd8 {[%clk 0:00:14]} 27. Bf3 {[%clk 0:00:33]}  Kg7 {[%clk 0:00:12]} 28. Nb3 {[%clk 0:00:31]}  Kf6 {[%clk 0:00:06]} 29. Rxd4 {[%clk 0:00:23]}  Rxd4 {[%clk 0:00:04]} 30. Nxd4 {[%clk 0:00:23]}  Bd7 {[%clk 0:00:04]} 31. Kf2 {[%clk 0:00:21]}  Ke5 {[%clk 0:00:03]} 32. Ne2 {[%clk 0:00:19]}  c5 {[%clk 0:00:03]} 33. c3 {[%clk 0:00:18]}  Nf5 {[%clk 0:00:03]} 34. Nf4 {[%clk 0:00:18]}  Be8 {[%clk 0:00:02]} 35. Nd3+ {[%clk 0:00:19]}  Kd6 {[%clk 0:00:03]} 36. b4 {[%clk 0:00:18]}  cxb4 {[%clk 0:00:01]} 37. cxb4 {[%clk 0:00:19]}  Ng7 {[%clk 0:00:02]} 38. Ke3 {[%clk 0:00:18]}  Ne6 {[%clk 0:00:02]} 39. Bd1 {[%clk 0:00:15]}  Nc7 {[%clk 0:00:03]} 40. a4 {[%clk 0:00:16]}  Nd5+ {[%clk 0:00:03]} 41. Kd4 {[%clk 0:00:17]}  Nb6 {[%clk 0:00:03]} 42. a5 {[%clk 0:00:17]}  Nd7 {[%clk 0:00:04]} 43. Nf4 {[%clk 0:00:17]}  Nf6 {[%clk 0:00:05]} 44. Bc2 {[%clk 0:00:17]}  Ng4 {[%clk 0:00:05]} 45. Bxg6 {[%clk 0:00:17]}  Ne5 {[%clk 0:00:06]} 46. Bxe8 {[%clk 0:00:17]}  Nf3+ {[%clk 0:00:06]} 47. Ke3 {[%clk 0:00:16]}  Ne5 {[%clk 0:00:06]} 48. Bxh5 {[%clk 0:00:17]}  Nc4+ {[%clk 0:00:05]} 49. Kd4 {[%clk 0:00:18]}  Na3 {[%clk 0:00:05]} 50. Be2 {[%clk 0:00:13]}  Nc2+ {[%clk 0:00:04]} 51. Kc3 {[%clk 0:00:13]}  Ne1 {[%clk 0:00:04]} 52. Kd2 {[%clk 0:00:09]}  Ke5 {[%clk 0:00:01]} 53. Kxe1 {[%clk 0:00:09]}  Ke4 {[%clk 0:00:02]} 54. a6 {[%clk 0:00:09]}  Kd4 {[%clk 0:00:03]} 55. b5 {[%clk 0:00:10]}  Ke4 {[%clk 0:00:04]} 56. Kf2 {[%clk 0:00:10]}  Kd4 {[%clk 0:00:04]} 57. Kf3 {[%clk 0:00:10]}  Kc5 {[%clk 0:00:05]} 58. g4 {[%clk 0:00:11]}  Kb6 {[%clk 0:00:04]} 59. g5 {[%clk 0:00:12]}  Ka5 {[%clk 0:00:04]} 60. g6 {[%clk 0:00:13]}  Kb6 {[%clk 0:00:05]} 61. g7 {[%clk 0:00:14]}  Ka5 {[%clk 0:00:06]} 62. g8=Q {[%clk 0:00:14]}  Kb4 {[%clk 0:00:07]} 63. Qc4+ {[%clk 0:00:15]}  Ka5 {[%clk 0:00:07]} 64. Qc3+ {[%clk 0:00:15]}  Kb6 {[%clk 0:00:07]} 65. Qd4+ {[%clk 0:00:15]}  Ka5 {[%clk 0:00:08]} 66. Qxa7 {[%clk 0:00:14]}  Kb4 {[%clk 0:00:08]} 67. b6 {[%clk 0:00:15]}  Ka5 {[%clk 0:00:08]} 68. b7 {[%clk 0:00:15]}  Ka4 {[%clk 0:00:08]} 69. b8=Q {[%clk 0:00:15]}  Ka5 {[%clk 0:00:09]} 70. Qab6+ {[%clk 0:00:15]} 1-0


[Site "https://www.chess.com"]